fUSD/lending_fUSD_20260610
["ID","MTS","AMOUNT","RATE_DAILY","PERIOD"]
[424732151,1781095838000,-642.93227335,0.00013198,2]
[424732152,1781095838000,-642.93227335,0.00013198,2]
[424732149,1781095838000,-642.93227335,0.00013198,2]
[424732155,1781095838000,-642.93227335,0.00013198,2]
[424732164,1781095838000,-2500.0,0.000132,2]
[424732223,1781095839000,-500.0,0.00013698,2]
[424732219,1781095839000,-413.03435697,0.00013698,2]
[424732218,1781095839000,-500.0,0.00013698,2]
[424732216,1781095839000,-500.0,0.00013698,2]
[424732211,1781095839000,-500.0,0.00013698,2]
[424732225,1781095839000,-500.0,0.00013698,2]
[424732217,1781095839000,-500.0,0.00013698,2]
[424732213,1781095839000,-240.98630425,0.00013698,2]
[424732221,1781095839000,-500.0,0.00013698,2]
[424732224,1781095839000,-500.0,0.00013698,2]
[424732220,1781095839000,-500.0,0.00013698,2]
[424732234,1781095839000,-500.0,0.00013698,2]
[424732226,1781095839000,-500.0,0.00013698,2]
[424732227,1781095839000,-500.0,0.00013698,2]
[424732228,1781095839000,-500.0,0.00013698,2]
[424732229,1781095839000,-500.0,0.00013698,2]
[424732231,1781095839000,-500.0,0.00013698,2]
[424732230,1781095839000,-500.0,0.00013698,2]
[424732235,1781095839000,-500.0,0.00013698,2]
[424732232,1781095839000,-500.0,0.00013698,2]
[424732209,1781095839000,-500.0,0.00013698,2]
[424732233,1781095839000,-500.0,0.00013698,2]
[424732236,1781095839000,-500.0,0.00013698,2]
[424732222,1781095839000,-500.0,0.00013698,2]
[424732208,1781095839000,-500.0,0.00013698,2]
[424732195,1781095839000,-500.0,0.00013698,2]
[424732210,1781095839000,-500.0,0.00013698,2]
[424732171,1781095839000,-2000.0,0.00013299,2]
[424732169,1781095839000,-250.0,0.00013276,2]
[424732173,1781095839000,-250.0,0.00013299,2]
[424732238,1781095839000,-500.0,0.00013698,2]
[424732181,1781095839000,-2000.0,0.00013446,2]
[424732175,1781095839000,-1863148.70631677,0.000133,3]
[424732184,1781095839000,-374.33831468,0.00013509,2]
[424732177,1781095839000,-438.80061466,0.00013346,2]
[424732179,1781095839000,-296.12668822,0.00013346,2]
[424732186,1781095839000,-166.66,0.00013556,2]
[424732188,1781095839000,-500.0,0.00013698,2]
[424732190,1781095839000,-500.0,0.00013698,2]
[424732193,1781095839000,-502.29186961,0.00013698,2]
[424732204,1781095839000,-500.0,0.00013698,2]
[424732197,1781095839000,-360.74444668,0.00013698,2]
[424732203,1781095839000,-500.0,0.00013698,2]
[424732202,1781095839000,-500.0,0.00013698,2]
[424732199,1781095839000,-500.0,0.00013698,2]
[424732205,1781095839000,-500.0,0.00013698,2]
[424732206,1781095839000,-500.0,0.00013698,2]
[424732214,1781095839000,-289.86791566,0.00013698,2]
[424732215,1781095839000,-500.0,0.00013698,2]
[424732212,1781095839000,-161.54562137,0.00013698,2]
[424732207,1781095839000,-500.0,0.00013698,2]
[424732237,1781095839000,-500.0,0.00013698,2]
[424732283,1781095839000,-500.0,0.00013698,2]
[424732239,1781095839000,-500.0,0.00013698,2]
[424732263,1781095839000,-500.0,0.00013698,2]
[424732273,1781095839000,-500.0,0.00013698,2]
[424732277,1781095839000,-500.0,0.00013698,2]
[424732274,1781095839000,-500.0,0.00013698,2]
[424732276,1781095839000,-614.48,0.00013698,2]
[424732278,1781095839000,-500.0,0.00013698,2]
[424732275,1781095839000,-500.0,0.00013698,2]
[424732279,1781095839000,-500.0,0.00013698,2]
[424732270,1781095839000,-500.0,0.00013698,2]
[424732269,1781095839000,-500.0,0.00013698,2]
[424732271,1781095839000,-500.0,0.00013698,2]
[424732272,1781095839000,-500.0,0.00013698,2]
[424732280,1781095839000,-500.0,0.00013698,2]
[424732282,1781095839000,-500.0,0.00013698,2]
[424732281,1781095839000,-500.0,0.00013698,2]
[424732288,1781095839000,-500.0,0.00013698,2]
[424732284,1781095839000,-527.2025556,0.00013698,2]
[424732290,1781095839000,-500.0,0.00013698,2]
[424732287,1781095839000,-500.0,0.00013698,2]
[424732286,1781095839000,-500.0,0.00013698,2]
[424732285,1781095839000,-500.0,0.00013698,2]
[424732292,1781095839000,-500.0,0.00013698,2]
[424732240,1781095839000,-500.0,0.00013698,2]
[424732262,1781095839000,-500.0,0.00013698,2]
[424732267,1781095839000,-502.1677605,0.00013698,2]
[424732294,1781095839000,-500.0,0.00013698,2]
[424732264,1781095839000,-500.0,0.00013698,2]
[424732241,1781095839000,-500.0,0.00013698,2]
[424732243,1781095839000,-500.0,0.00013698,2]
[424732242,1781095839000,-500.0,0.00013698,2]
[424732244,1781095839000,-500.0,0.00013698,2]
[424732245,1781095839000,-500.0,0.00013698,2]
[424732246,1781095839000,-500.0,0.00013698,2]
[424732266,1781095839000,-500.0,0.00013698,2]
[424732247,1781095839000,-500.0,0.00013698,2]
[424732249,1781095839000,-500.0,0.00013698,2]
[424732251,1781095839000,-500.0,0.00013698,2]
[424732250,1781095839000,-500.0,0.00013698,2]
[424732248,1781095839000,-500.0,0.00013698,2]
[424732253,1781095839000,-500.0,0.00013698,2]
[424732255,1781095839000,-500.0,0.00013698,2]
[424732265,1781095839000,-500.0,0.00013698,2]
[424732261,1781095839000,-500.0,0.00013698,2]
[424732259,1781095839000,-500.0,0.00013698,2]
[424732260,1781095839000,-500.0,0.00013698,2]
[424732268,1781095839000,-500.0,0.00013698,2]
[424732257,1781095839000,-500.0,0.00013698,2]
[424732256,1781095839000,-500.0,0.00013698,2]
[424732252,1781095839000,-500.0,0.00013698,2]
[424732254,1781095839000,-177.96166489,0.00013698,2]
[424732258,1781095839000,-500.0,0.00013698,2]
[424732321,1781095840000,-1185.83856126,0.00013699,2]
[424732322,1781095840000,-1185.83856126,0.00013699,2]
[424732325,1781095840000,-1185.83856126,0.00013699,2]
[424732324,1781095840000,-1185.83856126,0.00013699,2]
[424732326,1781095840000,-1185.83856126,0.00013699,2]
[424732333,1781095840000,-1185.83856126,0.00013699,2]
[424732327,1781095840000,-1185.83856126,0.00013699,2]
[424732334,1781095840000,-1185.83856126,0.00013699,2]
[424732328,1781095840000,-1185.83856126,0.00013699,2]
[424732329,1781095840000,-1185.83856126,0.00013699,2]
[424732344,1781095840000,-1185.83856126,0.00013699,2]
[424732331,1781095840000,-1185.83856126,0.00013699,2]
[424732330,1781095840000,-1185.83856126,0.00013699,2]
[424732332,1781095840000,-1185.83856126,0.00013699,2]
[424732336,1781095840000,-1185.83856126,0.00013699,2]
[424732337,1781095840000,-1185.83856126,0.00013699,2]
[424732349,1781095840000,-1185.83856126,0.00013699,2]
[424732339,1781095840000,-1185.83856126,0.00013699,2]
[424732351,1781095840000,-1185.83856126,0.00013699,2]
[424732347,1781095840000,-1185.83856126,0.00013699,2]
[424732342,1781095840000,-1185.83856126,0.00013699,2]
[424732317,1781095840000,-1185.83856126,0.00013699,2]
[424732335,1781095840000,-1185.83856126,0.00013699,2]
[424732323,1781095840000,-1185.83856126,0.00013699,2]
[424732307,1781095840000,-500.0,0.00013698,2]
[424732320,1781095840000,-1185.83856126,0.00013699,2]
[424732346,1781095840000,-1185.83856126,0.00013699,2]
[424732297,1781095840000,-510.79675376,0.00013698,2]
[424732299,1781095840000,-500.0,0.00013698,2]
[424732298,1781095840000,-500.0,0.00013698,2]
[424732296,1781095840000,-500.0,0.00013698,2]
[424732300,1781095840000,-500.0,0.00013698,2]
[424732301,1781095840000,-500.0,0.00013698,2]
[424732302,1781095840000,-500.0,0.00013698,2]
[424732304,1781095840000,-500.0,0.00013698,2]
[424732303,1781095840000,-500.0,0.00013698,2]
[424732319,1781095840000,-1185.83856126,0.00013699,2]
[424732306,1781095840000,-500.0,0.00013698,2]
[424732309,1781095840000,-528.37,0.00013699,2]
[424732312,1781095840000,-1185.83856126,0.00013699,2]
[424732308,1781095840000,-563.71456704,0.00013698,2]
[424732311,1781095840000,-1185.83856126,0.00013699,2]
[424732310,1781095840000,-1185.83856126,0.00013699,2]
[424732315,1781095840000,-1185.83856126,0.00013699,2]
[424732313,1781095840000,-1185.83856126,0.00013699,2]
[424732314,1781095840000,-1185.83856126,0.00013699,2]
[424732316,1781095840000,-1185.83856126,0.00013699,2]
[424732318,1781095840000,-1185.83856126,0.00013699,2]
[424732305,1781095840000,-500.0,0.00013698,2]
[424732341,1781095840000,-1185.83856126,0.00013699,2]
[424732358,1781095840000,-1185.83856126,0.00013699,2]
[424732345,1781095840000,-1185.83856126,0.00013699,2]
[424732380,1781095840000,-150.0,0.000139,2]
[424732378,1781095840000,-1185.83856126,0.00013699,2]
[424732379,1781095840000,-166.66,0.00013835,2]
[424732377,1781095840000,-1185.83856126,0.00013699,2]
[424732382,1781095840000,-223.0,0.00013968,2]
[424732381,1781095840000,-500.0,0.00013902,2]
[424732383,1781095840000,-226.0,0.00013968,2]
[424732384,1781095840000,-223.0,0.00013968,2]
[424732386,1781095840000,-150.0,0.00014,2]
[424732389,1781095840000,-166.66,0.00014115,2]
[424732376,1781095840000,-1185.83856126,0.00013699,2]
[424732387,1781095840000,-150.0,0.000141,2]
[424732385,1781095840000,-250.0,0.00014,2]
[424732390,1781095840000,-500.0,0.00014149,2]
[424732392,1781095840000,-150.0,0.000142,2]
[424732391,1781095840000,-500.0,0.00014149,2]
[424732394,1781095840000,-2000.0,0.00014204,2]
[424732399,1781095840000,-227.15,0.00014204,2]
[424732396,1781095840000,-267.25,0.00014204,2]
[424732397,1781095840000,-2000.0,0.00014204,2]
[424732393,1781095840000,-1984.47,0.00014204,2]
[424732395,1781095840000,-212.47,0.00014204,2]
[424732388,1781095840000,-466.18,0.00014108,2]
[424732374,1781095840000,-1185.83856126,0.00013699,2]
[424732343,1781095840000,-1185.83856126,0.00013699,2]
[424732372,1781095840000,-1185.83856126,0.00013699,2]
[424732373,1781095840000,-1185.83856126,0.00013699,2]
[424732340,1781095840000,-1185.83856126,0.00013699,2]
[424732353,1781095840000,-1185.83856126,0.00013699,2]
[424732356,1781095840000,-1185.83856126,0.00013699,2]
[424732352,1781095840000,-1185.83856126,0.00013699,2]
[424732354,1781095840000,-1185.83856126,0.00013699,2]
[424732357,1781095840000,-1185.83856126,0.00013699,2]
[424732359,1781095840000,-1185.83856126,0.00013699,2]
[424732360,1781095840000,-1185.83856126,0.00013699,2]
[424732398,1781095840000,-1023.96,0.00014204,2]
[424732363,1781095840000,-1185.83856126,0.00013699,2]
[424732355,1781095840000,-1185.83856126,0.00013699,2]
[424732364,1781095840000,-1185.83856126,0.00013699,2]
[424732362,1781095840000,-1185.83856126,0.00013699,2]
[424732365,1781095840000,-1185.83856126,0.00013699,2]
[424732375,1781095840000,-1185.83856126,0.00013699,2]
[424732366,1781095840000,-1185.83856126,0.00013699,2]
[424732368,1781095840000,-1185.83856126,0.00013699,2]
[424732361,1781095840000,-1185.83856126,0.00013699,2]
[424732367,1781095840000,-1185.83856126,0.00013699,2]
[424732370,1781095840000,-1185.83856126,0.00013699,2]
[424732371,1781095840000,-1185.83856126,0.00013699,2]
[424732369,1781095840000,-1185.83856126,0.00013699,2]
[424732434,1781095841000,-1613.0535,0.00016867,2]
[424732432,1781095841000,-1555.5,0.00016319,2]
[424732433,1781095841000,-361.6,0.00016414,2]
[424732425,1781095841000,-167.74,0.00015736,2]
[424732430,1781095841000,-300.0,0.00016,2]
[424732428,1781095841000,-200.0,0.00015797,2]
[424732427,1781095841000,-500.0,0.00015784,2]
[424732438,1781095841000,-1781.38,0.0001757,2]
[424732429,1781095841000,-1781.38,0.00015973,2]
[424732436,1781095841000,-167.74,0.00017034,2]
[424732449,1781095841000,-3649.26,0.00019222,2]
[424732439,1781095841000,-1734.62772924,0.00017963,2]
[424732431,1781095841000,-3763.00342347,0.00016243,2]
[424732437,1781095841000,-1672.7364795,0.00017415,2]
[424732441,1781095841000,-517.0,0.00018,2]
[424732446,1781095841000,-517.0,0.00018626,2]
[424732447,1781095841000,-1865.36488656,0.00019059,2]
[424732440,1781095841000,-350.0,0.00018,2]
[424732445,1781095841000,-746.22,0.00018533,2]
[424732442,1781095841000,-361.6,0.00018238,2]
[424732426,1781095841000,-1500.0,0.00015771,2]
[424732435,1781095841000,-438.80061462,0.00017005,2]
[424732424,1781095841000,-356.80515996,0.00014999,2]
[424732413,1781095841000,-500.0,0.00014999,2]
[424732421,1781095841000,-500.0,0.00014999,2]
[424732444,1781095841000,-1798.80895522,0.00018511,2]
[424732401,1781095841000,-150.0,0.000143,2]
[424732400,1781095841000,-318.01,0.00014204,2]
[424732404,1781095841000,-1218.51,0.00014502,2]
[424732408,1781095841000,-166.66,0.00014674,2]
[424732406,1781095841000,-787.47,0.00014502,2]
[424732402,1781095841000,-1781.38,0.00014376,2]
[424732403,1781095841000,-166.66,0.00014394,2]
[424732407,1781095841000,-361.6,0.0001459,2]
[424732409,1781095841000,-500.0,0.00014849,2]
[424732422,1781095841000,-500.0,0.00014999,2]
[424732405,1781095841000,-830.47,0.00014502,2]
[424732410,1781095841000,-500.0,0.00014849,2]
[424732414,1781095841000,-500.0,0.00014999,2]
[424732417,1781095841000,-500.0,0.00014999,2]
[424732412,1781095841000,-500.0,0.00014999,2]
[424732418,1781095841000,-281.67279939,0.00014999,2]
[424732416,1781095841000,-500.0,0.00014999,2]
[424732415,1781095841000,-500.0,0.00014999,2]
[424732420,1781095841000,-500.0,0.00014999,2]
[424732419,1781095841000,-500.0,0.00014999,2]
[424732423,1781095841000,-537.14703498,0.00014999,2]
[424732411,1781095841000,-500.0,0.00014849,2]
[424732443,1781095841000,-167.74,0.00018333,2]
[424732448,1781095841000,-1781.38,0.00019168,2]
[424732497,1781095841000,-151.0,0.00020703,2]
[424732479,1781095841000,-151.0,0.00020703,2]
[424732477,1781095841000,-151.0,0.00020703,2]
[424732476,1781095841000,-438.80061462,0.00020664,2]
[424732474,1781095841000,-2005.9555727,0.00020155,2]
[424732482,1781095841000,-151.0,0.00020703,2]
[424732483,1781095841000,-151.0,0.00020703,2]
[424732484,1781095841000,-151.0,0.00020703,2]
[424732490,1781095841000,-2080.17592889,0.00020703,2]
[424732491,1781095841000,-151.0,0.00020703,2]
[424732492,1781095841000,-151.0,0.00020703,2]
[424732480,1781095841000,-151.0,0.00020703,2]
[424732485,1781095841000,-151.0,0.00020703,2]
[424732488,1781095841000,-151.0,0.00020703,2]
[424732486,1781095841000,-151.0,0.00020703,2]
[424732494,1781095841000,-151.0,0.00020703,2]
[424732496,1781095841000,-151.0,0.00020703,2]
[424732498,1781095841000,-1030.0,0.00020902,2]
[424732495,1781095841000,-151.0,0.00020703,2]
[424732500,1781095841000,-1107.63007,0.00020902,2]
[424732499,1781095841000,-1068.11,0.00020902,2]
[424732493,1781095841000,-151.0,0.00020703,2]
[424732453,1781095841000,-517.0,0.00019879,3]
[424732487,1781095841000,-151.0,0.00020703,2]
[424732475,1781095841000,-517.0,0.00020505,4]
[424732489,1781095841000,-151.0,0.00020703,2]
[424732478,1781095841000,-151.0,0.00020703,2]
[424732481,1781095841000,-151.0,0.00020703,2]
[424732455,1781095841000,-500.0,0.00019945,2]
[424732454,1781095841000,-497.43023034,0.00019945,2]
[424732452,1781095841000,-1934.38338736,0.00019607,2]
[424732456,1781095841000,-400.0,0.0002,2]
[424732450,1781095841000,-517.0,0.00019253,3]
[424732457,1781095841000,-156.0,0.0002,2]
[424732458,1781095841000,-159.0,0.0002,2]
[424732459,1781095841000,-158.0,0.0002,2]
[424732460,1781095841000,-441.0,0.0002,2]
[424732461,1781095841000,-486.0,0.0002,2]
[424732469,1781095841000,-309.0,0.0002,2]
[424732451,1781095841000,-3763.00342347,0.00019386,2]
[424732473,1781095841000,-361.6,0.00020062,2]
[424732462,1781095841000,-153.0,0.0002,2]
[424732468,1781095841000,-175.0,0.0002,2]
[424732464,1781095841000,-489.0,0.0002,2]
[424732465,1781095841000,-173.0,0.0002,2]
[424732466,1781095841000,-157.0,0.0002,2]
[424732463,1781095841000,-153.0,0.0002,2]
[424732467,1781095841000,-534.0,0.0002,2]
[424732471,1781095841000,-3053.0,0.0002,2]
[424732472,1781095841000,-851.0,0.0002,2]
[424732470,1781095841000,-153.0,0.0002,2]
[424732544,1781095842000,-1358.0,0.00021851,2]
[424732543,1781095842000,-8749.56,0.00021815,2]
[424732536,1781095842000,-2157.14243826,0.00021251,2]
[424732534,1781095842000,-517.0,0.00021131,4]
[424732532,1781095842000,-153.0,0.00021,2]
[424732526,1781095842000,-173.0,0.00021,2]
[424732528,1781095842000,-534.0,0.00021,2]
[424732529,1781095842000,-175.0,0.00021,2]
[424732546,1781095842000,-382.0,0.00021851,2]
[424732527,1781095842000,-157.0,0.00021,2]
[424732548,1781095842000,-361.6,0.00021885,2]
[424732542,1781095842000,-2236.95670847,0.00021799,2]
[424732540,1781095842000,-517.0,0.00021758,5]
[424732547,1781095842000,-1227.0,0.00021851,2]
[424732538,1781095842000,-500.0,0.0002126,2]
[424732545,1781095842000,-1274.0,0.00021851,2]
[424732551,1781095842000,-450.0,0.00022,2]
[424732550,1781095842000,-150.0,0.00021918,2]
[424732552,1781095842000,-156.0,0.00022,2]
[424732553,1781095842000,-159.0,0.00022,2]
[424732554,1781095842000,-172.0,0.00022,2]
[424732556,1781095842000,-486.0,0.00022,2]
[424732549,1781095842000,-5000.0,0.00021918,2]
[424732530,1781095842000,-309.0,0.00021,2]
[424732555,1781095842000,-441.0,0.00022,2]
[424732525,1781095842000,-489.0,0.00021,2]
[424732501,1781095842000,-1148.61238259,0.00020902,2]
[424732502,1781095842000,-1191.11104074,0.00020902,2]
[424732503,1781095842000,-1235.18214925,0.00020902,2]
[424732511,1781095842000,-1651.81367706,0.00020902,2]
[424732504,1781095842000,-1280.88388877,0.00020902,2]
[424732510,1781095842000,-1592.87721992,0.00020902,2]
[424732512,1781095842000,-1712.93078311,0.00020902,2]
[424732505,1781095842000,-1328.27659266,0.00020902,2]
[424732508,1781095842000,-1481.2378076,0.00020902,2]
[424732509,1781095842000,-1536.04360648,0.00020902,2]
[424732506,1781095842000,-1377.42282658,0.00020902,2]
[424732507,1781095842000,-1428.38747117,0.00020902,2]
[424732513,1781095842000,-1776.30922209,0.00020902,2]
[424732520,1781095842000,-158.0,0.00021,2]
[424732518,1781095842000,-156.0,0.00021,2]
[424732521,1781095842000,-441.0,0.00021,2]
[424732516,1781095842000,-1980.8648231,0.00020902,2]
[424732519,1781095842000,-159.0,0.00021,2]
[424732515,1781095842000,-1910.18787185,0.00020902,2]
[424732517,1781095842000,-2054.15682156,0.00020902,2]
[424732522,1781095842000,-486.0,0.00021,2]
[424732514,1781095842000,-1842.0326633,0.00020902,2]
[424732523,1781095842000,-153.0,0.00021,2]
[424732524,1781095842000,-153.0,0.00021,2]
[424732558,1781095842000,-156.0,0.00022,2]
[424732609,1781095842000,-150.0,0.00024164,2]
[424732560,1781095842000,-173.0,0.00022,2]
[424732583,1781095842000,-150.0,0.00023014,2]
[424732584,1781095842000,-215.03290396,0.00023049,2]
[424732586,1781095842000,-2494.55939288,0.00023443,2]
[424732585,1781095842000,-200.0,0.00023327,2]
[424732587,1781095842000,-517.0,0.00023636,7]
[424732592,1781095842000,-500.0,0.00024,2]
[424732594,1781095842000,-159.0,0.00024,2]
[424732601,1781095842000,-534.0,0.00024,2]
[424732598,1781095842000,-489.0,0.00024,2]
[424732595,1781095842000,-441.0,0.00024,2]
[424732589,1781095842000,-1128.99,0.00023852,7]
[424732596,1781095842000,-486.0,0.00024,2]
[424732593,1781095842000,-168.0,0.00024,2]
[424732602,1781095842000,-175.0,0.00024,2]
[424732600,1781095842000,-162.0,0.00024,2]
[424732604,1781095842000,-153.0,0.00024,2]
[424732603,1781095842000,-309.0,0.00024,2]
[424732608,1781095842000,-155.35,0.00024108,2]
[424732606,1781095842000,-200.0,0.00024095,2]
[424732611,1781095842000,-1361.71104614,0.00024273,2]
[424732559,1781095842000,-489.0,0.00022,2]
[424732610,1781095842000,-517.0,0.00024263,7]
[424732599,1781095842000,-173.0,0.00024,2]
[424732582,1781095842000,-517.0,0.0002301,6]
[424732597,1781095842000,-153.0,0.00024,2]
[424732590,1781095842000,-577.28,0.00023886,7]
[424732557,1781095842000,-153.0,0.00022,2]
[424732561,1781095842000,-157.0,0.00022,2]
[424732591,1781095842000,-2586.85809042,0.00023991,2]
[424732563,1781095842000,-175.0,0.00022,2]
[424732562,1781095842000,-534.0,0.00022,2]
[424732568,1781095842000,-3763.00342347,0.00022529,2]
[424732564,1781095842000,-309.0,0.00022,2]
[424732566,1781095842000,-2319.72410669,0.00022347,2]
[424732569,1781095842000,-2405.55389863,0.00022895,2]
[424732570,1781095842000,-156.0,0.00023,2]
[424732567,1781095842000,-517.0,0.00022384,6]
[424732571,1781095842000,-159.0,0.00023,2]
[424732565,1781095842000,-153.0,0.00022,2]
[424732581,1781095842000,-153.0,0.00023,2]
[424732572,1781095842000,-441.0,0.00023,2]
[424732574,1781095842000,-153.0,0.00023,2]
[424732575,1781095842000,-489.0,0.00023,2]
[424732576,1781095842000,-173.0,0.00023,2]
[424732578,1781095842000,-534.0,0.00023,2]
[424732579,1781095842000,-175.0,0.00023,2]
[424732577,1781095842000,-157.0,0.00023,2]
[424732573,1781095842000,-486.0,0.00023,2]
[424732580,1781095842000,-309.0,0.00023,2]
[424732588,1781095842000,-1749.73,0.00023852,7]
[424732667,1781095843000,-517.0,0.00027394,10]
[424732659,1781095843000,-500.0,0.00026438,2]
[424732656,1781095843000,-2991.49051684,0.00026183,2]
[424732652,1781095843000,-550.0,0.00026,2]
[424732647,1781095843000,-200.0,0.00025632,2]
[424732651,1781095843000,-3763.00342347,0.00025673,2]
[424732657,1781095843000,-151.0,0.00026296,2]
[424732655,1781095843000,-517.0,0.00026141,9]
[424732658,1781095843000,-200.0,0.000264,2]
[424732648,1781095843000,-2884.75459676,0.00025635,2]
[424732660,1781095843000,-1289.04,0.00026505,7]
[424732676,1781095843000,-500.0,0.00027397,7]
[424732662,1781095843000,-150.0,0.00026641,2]
[424732663,1781095843000,-517.0,0.00026768,10]
[424732664,1781095843000,-217.21686694,0.00026801,3]
[424732666,1781095843000,-194.81124461,0.00027337,3]
[424732665,1781095843000,-200.0,0.00027169,2]
[424732668,1781095843000,-500.0,0.00027397,7]
[424732672,1781095843000,-500.0,0.00027397,7]
[424732670,1781095843000,-500.0,0.00027397,7]
[424732671,1781095843000,-500.0,0.00027397,7]
[424732644,1781095843000,-424.20829896,0.00025331,2]
[424732661,1781095843000,-155.35,0.00026518,2]
[424732646,1781095843000,-517.0,0.00025515,9]
[424732614,1781095843000,-296.12668822,0.00024323,2]
[424732643,1781095843000,-1450.67,0.00025179,7]
[424732675,1781095843000,-500.0,0.00027397,7]
[424732615,1781095843000,-2682.57183977,0.00024539,2]
[424732617,1781095843000,-559.96,0.00024603,7]
[424732612,1781095843000,-438.80061462,0.00024323,2]
[424732618,1781095843000,-1000.0,0.00024658,2]
[424732620,1781095843000,-1274.0,0.00024851,2]
[424732619,1781095843000,-1358.0,0.00024851,2]
[424732623,1781095843000,-382.0,0.00024851,2]
[424732624,1781095843000,-1227.0,0.00024851,2]
[424732626,1781095843000,-517.0,0.00024889,8]
[424732629,1781095843000,-498.0,0.00025,2]
[424732645,1781095843000,-150.0,0.00025373,2]
[424732625,1781095843000,-200.0,0.00024864,2]
[424732628,1781095843000,-441.0,0.00025,2]
[424732631,1781095843000,-501.0,0.00025,2]
[424732641,1781095843000,-10000.0,0.00025079,2]
[424732642,1781095843000,-2781.82699784,0.00025087,2]
[424732630,1781095843000,-165.0,0.00025,2]
[424732637,1781095843000,-309.0,0.00025,2]
[424732633,1781095843000,-534.0,0.00025,2]
[424732632,1781095843000,-181.0,0.00025,2]
[424732635,1781095843000,-191.0,0.00025,2]
[424732640,1781095843000,-500.0,0.00025078,2]
[424732638,1781095843000,-153.0,0.00025,2]
[424732627,1781095843000,-171.0,0.00025,2]
[424732669,1781095843000,-500.0,0.00027397,7]
[424732684,1781095843000,-500.0,0.00027397,7]
[424732674,1781095843000,-500.0,0.00027397,7]
[424732706,1781095843000,-500.0,0.000275,7]
[424732705,1781095843000,-160.38394548,0.00027485,2]
[424732708,1781095843000,-215.03290396,0.00027701,2]
[424732704,1781095843000,-169.93052837,0.00027485,2]
[424732707,1781095843000,-183.0,0.00027659,2]
[424732720,1781095843000,-1358.0,0.00027851,2]
[424732711,1781095843000,-385.15,0.00027789,7]
[424732719,1781095843000,-385.15,0.00027846,7]
[424732710,1781095843000,-385.15,0.00027771,2]
[424732712,1781095843000,-385.55,0.0002779,2]
[424732713,1781095843000,-385.55,0.00027807,7]
[424732714,1781095843000,-385.15,0.00027808,30]
[424732715,1781095843000,-385.55,0.00027825,30]
[424732717,1781095843000,-666.53,0.00027832,7]
[424732716,1781095843000,-385.15,0.00027827,2]
[424732718,1781095843000,-385.55,0.00027843,2]
[424732721,1781095843000,-1274.0,0.00027851,2]
[424732725,1781095843000,-385.15,0.00027865,30]
[424732722,1781095843000,-382.0,0.00027851,2]
[424732723,1781095843000,-1227.0,0.00027851,2]
[424732727,1781095843000,-1099.62,0.00027877,7]
[424732726,1781095843000,-172.4056223,0.00027873,3]
[424732673,1781095843000,-500.0,0.00027397,7]
[424732709,1781095843000,-1099.62,0.00027737,30]
[424732700,1781095843000,-165.51147642,0.00027485,2]
[424732724,1781095843000,-385.55,0.00027861,7]
[424732703,1781095843000,-167.903995,0.00027485,2]
[424732702,1781095843000,-232.31992153,0.00027485,2]
[424732679,1781095843000,-500.0,0.00027397,7]
[424732677,1781095843000,-500.0,0.00027397,7]
[424732686,1781095843000,-1500.0,0.00027397,2]